fUST/lending_fUST_20240821
["ID","MTS","AMOUNT","RATE_DAILY","PERIOD"]
[335405784,1724195462882,-500.0,0.00034931,21]
[335405785,1724195462895,-505.17290861,0.00034931,21]
[335405786,1724195462905,-500.0,0.00034931,21]
[335405787,1724195462916,-500.0,0.00034931,21]
[335405788,1724195462926,-500.0,0.00034931,21]
[335405789,1724195462935,-500.0,0.00034931,21]
[335405790,1724195462945,-500.0,0.00034931,21]
[335405791,1724195462954,-500.0,0.00034931,21]
[335405792,1724195462965,-500.0,0.00034931,21]
[335405793,1724195462975,-500.0,0.00034931,21]
[335405794,1724195462984,-500.0,0.00034931,21]
[335405795,1724195462994,-500.0,0.00034931,21]
[335405796,1724195463004,-500.0,0.00034931,21]
[335405797,1724195463013,-500.0,0.00034931,21]
[335405798,1724195463024,-500.0,0.00034931,21]
[335405799,1724195463034,-500.0,0.00034931,21]
[335405800,1724195463045,-509.52708018,0.00034931,21]
[335405801,1724195463055,-411.31,0.00034931,21]
[335405802,1724195463064,-500.0,0.00034931,21]
[335405803,1724195463075,-207.08,0.00034931,21]
[335405804,1724195463085,-500.0,0.00034931,21]
[335405805,1724195463095,-500.0,0.00034931,21]
[335405806,1724195463104,-500.0,0.00034931,21]
[335405807,1724195463114,-500.0,0.00034931,21]
[335405808,1724195463125,-500.0,0.00034931,21]
[335405809,1724195463135,-500.0,0.00034931,21]
[335405810,1724195463144,-280.62,0.00034931,21]
[335405811,1724195463154,-500.0,0.00034931,21]
[335405812,1724195463165,-500.0,0.00034931,21]
[335405813,1724195463174,-500.0,0.00034931,21]
[335405814,1724195463183,-500.0,0.00034931,21]
[335405815,1724195463193,-868.6,0.00034931,21]
[335405816,1724195463208,-868.6,0.00034931,21]
[335405817,1724195463229,-868.6,0.00034931,21]
[335405818,1724195463247,-868.6,0.00034931,21]
[335405819,1724195463267,-531.31878181,0.00034931,21]
[335405820,1724195463287,-868.6,0.00034931,21]
[335405821,1724195463304,-500.0,0.00034931,21]
[335405822,1724195463323,-868.6,0.00034931,21]
[335405823,1724195463339,-179.01057247,0.00034931,21]
[335405824,1724195463358,-868.6,0.00034931,21]
[335405825,1724195463378,-868.6,0.00034931,21]
[335405826,1724195463393,-868.6,0.00034931,21]
[335405827,1724195463412,-868.6,0.00034931,21]
[335405828,1724195463428,-500.0,0.00034931,21]
[335405829,1724195463446,-868.6,0.00034931,21]
[335405830,1724195463460,-500.0,0.00034931,21]
[335405831,1724195463475,-868.6,0.00034931,21]
[335405832,1724195463491,-170.51772365,0.00034931,21]
[335405833,1724195463506,-868.6,0.00034931,21]
[335405834,1724195463523,-868.6,0.00034931,21]
[335405835,1724195463538,-868.6,0.00034931,21]
[335405836,1724195463553,-868.6,0.00034931,21]
[335405837,1724195463568,-868.6,0.00034931,21]
[335405838,1724195463583,-500.0,0.00034931,21]
[335405839,1724195463600,-500.0,0.00034931,21]
[335405840,1724195463615,-868.6,0.00034931,21]
[335405841,1724195463630,-500.0,0.00034931,21]
[335405842,1724195463646,-868.6,0.00034931,21]
[335405843,1724195463661,-500.0,0.00034931,21]
[335405844,1724195463680,-868.6,0.00034931,21]
[335405845,1724195463690,-493.58,0.00034931,21]
[335405846,1724195463700,-868.6,0.00034931,21]
[335405847,1724195463709,-868.6,0.00034931,21]
[335405848,1724195463719,-868.6,0.00034931,21]
[335405849,1724195463729,-868.74079624,0.00034931,21]
[335405850,1724195463738,-500.0,0.00034931,21]
[335405851,1724195463748,-500.0,0.00034931,21]
[335405852,1724195463758,-223.67744127,0.00034931,21]
[335405853,1724195463768,-500.93722246,0.00034931,21]
[335405854,1724195463778,-534.33980533,0.00034931,21]
[335405855,1724195463788,-500.0,0.00034931,21]
[335405856,1724195463798,-501.75767869,0.00034931,21]
[335405857,1724195463808,-500.0,0.00034931,21]
[335405858,1724195463818,-500.0,0.00034931,21]
[335405859,1724195463828,-500.0,0.00034931,21]
[335405860,1724195463989,-500.0,0.00034931,21]
[335405861,1724195464004,-500.0,0.00034931,21]
[335405862,1724195464021,-500.0,0.00034931,21]
[335405863,1724195464031,-500.0,0.00034931,21]
[335405864,1724195464040,-500.0,0.00034931,21]
[335405865,1724195464049,-500.0,0.00034931,21]
[335405866,1724195464059,-404.61246269,0.00034931,21]
[335405867,1724195464069,-302.83401711,0.00034931,21]
[335405868,1724195464078,-500.0,0.00034931,21]
[335405869,1724195464087,-1452.48,0.00034931,21]
[335405870,1724195464097,-500.0,0.00034931,21]
[335405871,1724195464107,-1452.48,0.00034931,21]
[335405872,1724195464117,-1452.48,0.00034931,21]
[335405873,1724195464126,-1452.48,0.00034931,21]
[335405874,1724195464136,-1452.48,0.00034931,21]
[335405875,1724195464145,-1452.48,0.00034931,21]
[335405876,1724195464155,-501.98017459,0.00034931,2]
[335405877,1724195464166,-1452.48,0.00034931,21]
[335405878,1724195464175,-1452.48,0.00034931,21]
[335405879,1724195464185,-500.0,0.00034931,21]
[335405880,1724195464195,-1452.48,0.00034931,21]
[335405881,1724195464205,-502.15700071,0.00034931,21]
[335405882,1724195464214,-1452.48,0.00034931,21]
[335405883,1724195464224,-1452.48,0.00034931,21]
[335405884,1724195464234,-1452.48,0.00034931,21]
[335405885,1724195464243,-1452.48,0.00034931,21]
[335405886,1724195464253,-1452.48,0.00034931,21]
[335405887,1724195464263,-1452.48,0.00034931,21]
[335405888,1724195464272,-1452.48,0.00034931,21]
[335405889,1724195464282,-1452.48,0.00034931,21]
[335405890,1724195464291,-1452.48,0.00034931,21]
[335405891,1724195464300,-1452.48,0.00034931,21]
[335405892,1724195464310,-1452.48,0.00034931,21]
[335405893,1724195464319,-1452.48,0.00034931,21]
[335405894,1724195464329,-444.973337,0.00034931,7]
[335405895,1724195464339,-1452.48,0.00034931,21]
[335405896,1724195464348,-444.973337,0.00034931,7]
[335405897,1724195464358,-1452.48,0.00034931,21]
[335405898,1724195464367,-500.0,0.00034931,21]
[335405899,1724195464377,-444.973337,0.00034931,7]
[335405900,1724195464387,-1452.49,0.00034931,21]
[335405901,1724195464397,-500.0,0.00034931,21]
[335405902,1724195464408,-500.0,0.00034931,21]
[335405903,1724195464419,-516.27445323,0.00034931,21]
[335405904,1724195464430,-444.973337,0.00034931,7]
[335405905,1724195464440,-500.0,0.00034931,21]
[335405906,1724195464450,-500.0,0.00034931,21]
[335405907,1724195464459,-444.973337,0.00034931,7]
[335405908,1724195464470,-500.0,0.00034931,21]
[335405909,1724195464481,-500.0,0.00034931,21]
[335405910,1724195464490,-500.0,0.00034931,21]
[335405911,1724195464500,-444.973337,0.00034931,7]
[335405912,1724195464511,-500.0,0.00034931,21]
[335405913,1724195464521,-444.973337,0.00034931,7]
[335405914,1724195464531,-500.0,0.00034931,21]
[335405915,1724195464542,-444.973337,0.00034931,7]
[335405916,1724195464552,-500.0,0.00034931,21]
[335405917,1724195464561,-500.0,0.00034931,21]
[335405918,1724195464571,-151.0,0.00034931,7]
[335405919,1724195464580,-368.4,0.00034931,21]
[335405920,1724195464590,-151.0,0.00034931,7]
[335405921,1724195464600,-151.0,0.00034931,7]
[335405922,1724195464610,-500.0,0.00034931,21]
[335405923,1724195464621,-151.0,0.00034931,7]
[335405924,1724195464630,-444.973337,0.00034931,7]
[335405925,1724195464640,-500.0,0.00034931,21]
[335405926,1724195464652,-500.0,0.00034931,21]
[335405927,1724195464663,-151.0,0.00034931,7]
[335405928,1724195464673,-444.973337,0.00034931,7]
[335405929,1724195464683,-399.70470001,0.00034931,21]
[335405930,1724195464916,-713.01837983,0.0003259,2]
[335405931,1724195464927,-1000.000001,0.00033,2]
[335405932,1724195464936,-100.29529999,0.00034931,21]
[335405933,1724195464946,-151.0,0.00034931,7]
[335405934,1724195464956,-444.973337,0.00034931,7]
[335405935,1724195464968,-500.0,0.00034931,21]
[335405936,1724195464978,-444.973337,0.00034931,7]
[335405937,1724195464988,-151.0,0.00034931,7]
[335405938,1724195464998,-500.0,0.00034931,21]
[335405939,1724195465007,-444.973337,0.00034931,7]
[335405940,1724195465017,-151.0,0.00034931,7]
[335405941,1724195465027,-508.58865423,0.00034931,21]
[335405942,1724195465037,-500.0,0.00034931,21]
[335405943,1724195465046,-444.973337,0.00034931,7]
[335405944,1724195465057,-500.0,0.00034931,21]
[335405945,1724195465066,-444.973337,0.00034931,7]
[335405946,1724195465076,-500.0,0.00034931,21]
[335405947,1724195465086,-115.75536304,0.00034931,7]
[335405948,1724195465100,-35.24463696,0.00034931,7]
[335405949,1724195465110,-397.02488279,0.00034931,7]
[335405950,1724195465280,-277.6716568,0.00024485,2]
[335405951,1724195465291,-47.94845121,0.00034931,7]
[335405952,1724195465302,-500.0,0.00034931,21]
[335405953,1724195465312,-151.0,0.00034931,7]
[335405954,1724195465321,-222.57962958,0.00034931,21]
[335405955,1724195465334,-199.96037042,0.00034931,21]
[335405956,1724195465343,-151.0,0.00034931,7]
[335405957,1724195465353,-151.0,0.00034931,7]
[335405958,1724195465363,-292.03689,0.00034931,7]
[335405959,1724195465372,-500.0,0.00034931,21]
[335405960,1724195465381,-500.0,0.00034931,21]
[335405961,1724195465391,-500.0,0.00034931,21]
[335405962,1724195465401,-500.0,0.00034931,21]
[335405963,1724195465411,-500.0,0.00034931,21]
[335405964,1724195465428,-500.0,0.00034931,21]
[335405965,1724195465438,-500.0,0.00034931,21]
[335405966,1724195465447,-500.0,0.00034931,21]
[335405967,1724195465457,-500.0,0.00034931,21]
[335405968,1724195465469,-533.24689988,0.00034931,21]
[335405969,1724195465479,-500.0,0.00034931,21]
[335405970,1724195465488,-500.0,0.00034931,21]
[335405971,1724195465498,-500.0,0.00034931,21]
[335405972,1724195465507,-500.0,0.00034931,21]
[335405973,1724195465517,-500.0,0.00034931,21]
[335405974,1724195465527,-500.0,0.00034931,21]
[335405975,1724195465537,-911.3,0.00034931,21]
[335405976,1724195465547,-508.55138354,0.00034931,21]
[335405977,1724195465556,-911.3,0.00034931,21]
[335405978,1724195465567,-500.0,0.00034931,21]
[335405979,1724195465577,-500.0,0.00034931,21]
[335405980,1724195465587,-911.3,0.00034931,21]
[335405981,1724195465597,-502.76378911,0.00034931,21]
[335405982,1724195465606,-500.0,0.00034931,21]
[335405983,1724195465616,-500.0,0.00034931,21]
[335405984,1724195465626,-911.3,0.00034931,21]
[335405985,1724195465635,-911.3,0.00034931,21]
[335405986,1724195465645,-500.0,0.00034931,21]
[335405987,1724195465655,-911.3,0.00034931,21]
[335405988,1724195465665,-500.0,0.00034931,21]
[335405989,1724195465675,-911.3,0.00034931,21]
[335405990,1724195465685,-466.79,0.00034931,21]
[335405991,1724195465694,-500.0,0.00034931,21]
[335405992,1724195465703,-911.3,0.00034931,21]
[335405993,1724195465713,-911.3,0.00034931,21]
[335405994,1724195465723,-911.3,0.00034931,21]
[335405995,1724195465732,-500.0,0.00034931,21]
[335405996,1724195465742,-911.3,0.00034931,21]
[335405997,1724195465752,-500.0,0.00034931,21]
[335405998,1724195465762,-500.0,0.00034931,21]
[335405999,1724195465772,-911.3,0.00034931,21]
[335406000,1724195465783,-500.0,0.00034931,21]
[335406001,1724195465793,-368.70710822,0.00034931,21]
[335406002,1724195465804,-911.3,0.00034931,21]
[335406003,1724195465814,-500.0,0.00034931,21]
[335406004,1724195465824,-500.0,0.00034931,21]
[335406005,1724195465834,-911.3,0.00034931,21]
[335406006,1724195465845,-608.93,0.00034931,21]
[335406007,1724195465856,-911.3,0.00034931,21]
[335406008,1724195465866,-911.3,0.00034931,21]
[335406009,1724195465875,-212.77555315,0.00034931,21]
[335406010,1724195465888,-911.3,0.00034931,21]
[335406011,1724195465902,-911.3,0.00034931,21]
[335406012,1724195465916,-911.3,0.00034931,21]
[335406013,1724195465927,-911.3,0.00034931,21]
[335406014,1724195465937,-500.0,0.00034931,21]
[335406015,1724195465947,-911.3,0.00034931,21]
[335406016,1724195465957,-526.99612184,0.00034931,21]
[335406017,1724195465968,-911.3,0.00034931,21]
[335406018,1724195465978,-500.0,0.00034931,21]
[335406019,1724195465988,-911.3,0.00034931,21]
[335406020,1724195465998,-911.3457127,0.00034931,21]
[335406021,1724195466007,-509.93065754,0.00034931,21]
[335406022,1724195466017,-500.0,0.00034931,21]
[335406023,1724195466028,-500.0,0.00034931,21]
[335406024,1724195466038,-500.0,0.00034931,21]
[335406025,1724195466049,-500.0,0.00034931,21]
[335406026,1724195466059,-500.0,0.00034931,21]
[335406027,1724195466068,-500.0,0.00034931,21]
[335406028,1724195466078,-500.0,0.00034931,21]
[335406029,1724195466087,-500.0,0.00034931,21]
[335406030,1724195466097,-399.0615893,0.00034931,21]
[335406031,1724195466184,-964.57,0.00034931,21]
[335406032,1724195466196,-964.57,0.00034931,21]
[335406033,1724195466206,-964.57,0.00034931,21]
[335406034,1724195466215,-964.57,0.00034931,21]
[335406035,1724195466227,-964.57,0.00034931,21]
[335406036,1724195466236,-964.57,0.00034931,21]
[335406037,1724195466246,-1012.68,0.00034931,21]
[335406038,1724195466256,-964.57,0.00034931,21]
[335406039,1724195466265,-1012.68,0.00034931,21]
[335406040,1724195466276,-964.57,0.00034931,21]
[335406041,1724195466286,-964.57,0.00034931,21]
[335406042,1724195466296,-1012.68,0.00034931,21]
[335406043,1724195466305,-1012.68,0.00034931,21]
[335406044,1724195466315,-964.57,0.00034931,21]
[335406045,1724195466324,-500.0,0.00034931,21]
[335406046,1724195466334,-1012.68,0.00034931,21]
[335406047,1724195466343,-964.57,0.00034931,21]
[335406048,1724195466353,-500.0,0.00034931,21]
[335406049,1724195466362,-1012.68,0.00034931,21]
[335406050,1724195466371,-964.57,0.00034931,21]
[335406051,1724195466381,-500.0,0.00034931,21]
[335406052,1724195466390,-964.57,0.00034931,21]
[335406053,1724195466400,-1012.68,0.00034931,21]
[335406054,1724195466410,-500.0,0.00034931,21]
[335406055,1724195466423,-500.0,0.00034931,21]
[335406056,1724195466432,-964.57,0.00034931,21]
[335406057,1724195466443,-1012.68,0.00034931,21]
[335406058,1724195466452,-500.0,0.00034931,21]
[335406059,1724195466461,-1012.68,0.00034931,21]
[335406060,1724195466472,-964.57,0.00034931,21]
[335406061,1724195466481,-1012.68,0.00034931,21]
[335406062,1724195466490,-964.57,0.00034931,21]
[335406063,1724195466499,-500.0,0.00034931,21]
[335406064,1724195466508,-1012.68,0.00034931,21]
[335406065,1724195466518,-500.0,0.00034931,21]
[335406066,1724195466528,-1012.68,0.00034931,21]
[335406067,1724195466538,-964.57,0.00034931,21]
[335406068,1724195466549,-500.0,0.00034931,21]
[335406069,1724195466558,-500.0,0.00034931,21]
[335406070,1724195466567,-1012.68,0.00034931,21]
[335406071,1724195466577,-964.57,0.00034931,21]
[335406072,1724195466587,-500.0,0.00034931,21]
[335406073,1724195466596,-500.0,0.00034931,21]
[335406074,1724195466606,-964.57,0.00034931,21]
[335406075,1724195466615,-500.0,0.00034931,21]
[335406076,1724195466626,-500.0,0.00034931,21]
[335406077,1724195466635,-500.0,0.00034931,21]
[335406078,1724195466645,-964.57,0.00034931,21]
[335406079,1724195466655,-500.0,0.00034931,21]
[335406080,1724195466666,-317.69118983,0.00034931,21]
[335406081,1724195466675,-1012.68,0.00034931,21]
[335406082,1724195466685,-500.0,0.00034931,21]
[335406083,1724195466695,-964.57,0.00034931,21]
[335406084,1724195466706,-500.0,0.00034931,21]
[335406085,1724195466715,-1012.68,0.00034931,21]
[335406086,1724195466725,-964.57,0.00034931,21]
[335406087,1724195466734,-1012.68,0.00034931,21]
[335406088,1724195466744,-964.57,0.00034931,21]
[335406089,1724195466754,-1012.68,0.00034931,21]
[335406090,1724195466763,-5910.479248,0.00034931,7]
[335406091,1724195466774,-500.0,0.00034931,21]
[335406092,1724195466784,-964.69,0.00034931,21]
[335406093,1724195466794,-248.02333173,0.00034931,21]
[335406094,1724195466805,-5910.479248,0.00034931,7]
[335406095,1724195466816,-5910.479248,0.00034931,7]
[335406096,1724195466826,-1012.68,0.00034931,21]
[335406097,1724195466836,-5910.479248,0.00034931,7]
[335406098,1724195466845,-1012.68,0.00034931,21]
[335406099,1724195466855,-1012.68,0.00034931,21]
[335406100,1724195466864,-5910.479248,0.00034931,7]
[335406101,1724195466873,-500.0,0.00034931,21]
[335406102,1724195466884,-1012.68,0.00034931,21]
[335406103,1724195466897,-500.0,0.00034931,21]
[335406104,1724195466907,-500.0,0.00034931,21]
[335406105,1724195466916,-5910.479248,0.00034931,7]
[335406106,1724195466925,-500.0,0.00034931,21]
[335406107,1724195466936,-500.0,0.00034931,21]
[335406108,1724195466949,-421.16147632,0.00034931,21]
[335406109,1724195466959,-5910.479248,0.00034931,7]
[335406110,1724195466969,-479.37285983,0.00034931,21]
[335406111,1724195466980,-1012.68,0.00034931,21]
[335406112,1724195466990,-514.40417949,0.00034931,21]
[335406113,1724195466999,-5910.479248,0.00034931,7]
[335406114,1724195467008,-1012.68,0.00034931,21]
[335406115,1724195467017,-1012.89787141,0.00034931,21]
[335406116,1724195467027,-5910.479248,0.00034931,7]
[335406117,1724195467037,-5882.77203979,0.00034931,7]
[335406124,1724196336144,-341.1473322,0.00012989,3]
[335406127,1724196340098,-709.19012729,0.00012989,3]
[335406128,1724196439335,-245.45814263,0.00012898,3]
[335406129,1724196443094,-2037.21362413,0.00012898,3]
[335406130,1724196443118,-817.60790766,0.00012985,2]
[335406131,1724196443144,-154.76012181,0.00013025,2]
[335406132,1724196443171,-205.83207774,0.00013025,2]
[335406133,1724196443198,-154.76012181,0.00013792,2]
[335406134,1724196443223,-570.82959735,0.00014245,2]
[335406135,1724196443250,-483.50683086,0.00014245,2]
[335406136,1724196443276,-2190.01852431,0.00014245,2]
[335406137,1724196443301,-176.495347,0.00014247,2]
[335406138,1724196443326,-200.287536,0.00014247,2]
[335406139,1724196443350,-262.47312139,0.00016438,2]
[335406140,1724196443374,-73.9967299,0.0002,2]
[335406141,1724196447115,-82.6584873,0.0002,2]
[335406142,1724196447142,-471.01205964,0.00020341,2]
[335406143,1724196447167,-200.287536,0.00020707,2]
[335406144,1724196447195,-1777.4311329,0.00020933,2]
[335406145,1724196449084,-2956.82821695,0.00020933,2]
[335406146,1724196449115,-246.81929865,0.00020933,2]
[335406147,1724196453090,-280.51995689,0.00020933,2]
[335406150,1724196547106,-154.76012181,0.00014519,4]
[335406151,1724196547128,-2282.67176676,0.00014519,3]
[335406152,1724196547150,-762.80899771,0.00014519,3]
[335406153,1724196552115,-54.79890995,0.00014519,3]
[335406161,1724196617258,154.71377951,0.00017598,2]
[335406162,1724196624727,85.87143929,0.00014519,3]
[335406163,1724196624749,153.52211286,0.00014519,3]
[335406164,1724196624769,106.80545116,0.00014519,3]
[335406348,1724196640883,-156.6552172,0.0002,2]
[335406350,1724196640893,-3050.88646594,0.00020833,2]
[335406352,1724196640902,-375.54,0.00020923,3]
[335406354,1724196640912,-1260.76755592,0.00020933,2]
[335406356,1724196640922,-59813.80988327,0.00020933,2]
[335406376,1724196643907,-39570.74855549,0.00020933,2]
[335406386,1724196646802,-17374.87520924,0.00020933,2]
[335406387,1724196646814,-9739.98132298,0.00020933,2]
[335406388,1724196646825,-10511.84618177,0.00020933,2]
[335406389,1724196646835,-287.15761358,0.00020933,2]
[335406390,1724196646848,-226.11908431,0.00020933,2]
[335406391,1724196646858,-170.02363471,0.00020933,2]
[335406392,1724196646868,-623.67698761,0.00020933,2]
[335406393,1724196646880,-150.0,0.00021,2]
[335406394,1724196646890,-2074.0,0.00021,2]
[335406395,1724196646900,-307.6830853,0.00021189,2]
[335406396,1724196646909,-251.0,0.00021218,2]
[335406397,1724196646919,-165.098411,0.00021318,2]
[335406398,1724196646928,-500.0,0.00022249,2]
[335406399,1724196646938,-185.829635,0.00022716,2]
[335406400,1724196646948,-3050.88646589,0.00022843,2]
[335406401,1724196646958,-165.578175,0.0002292,2]
[335406402,1724196646967,-10342.93698711,0.00023177,2]
[335406403,1724196646977,-10342.93698711,0.00023177,2]
[335406404,1724196646987,-112.9679643,0.00023939,2]
[335406405,1724196648487,131.82946821,0.00014519,3]
[335406406,1724196648508,174.5772,0.00014519,3]
[335406407,1724196648529,171.51242903,0.00014519,3]
[335406418,1724196952391,-154.76012181,0.00013971,2]
[335406434,1724197440674,-154.76012181,0.00014247,2]
[335406435,1724197462322,-60.00934919,0.00014247,2]
[335406436,1724197462345,-94.65811576,0.00014519,2]
[335406437,1724197466708,-60.10200605,0.00014519,2]
[335406438,1724197466743,-126.88504298,0.00014519,3]
[335406439,1724197498599,-154.66746495,0.00014245,2]
[335406440,1724197508962,-165.188612,0.00014247,2]
[335406441,1724197514104,-186.98704903,0.00014245,2]
[335406445,1724197544098,-545.71776736,0.00016438,2]
[335406446,1724197544121,-200.0,0.00016438,2]
[335406447,1724197544144,-59.12001321,0.0002,2]
[335406448,1724197590101,-97.53520399,0.0002,2]
[335406449,1724197590124,-154.60575532,0.0002,2]
[335406450,1724197590147,-214.769471,0.00020707,2]
[335406451,1724197590169,-466.0749425,0.00021109,2]
[335406452,1724197590191,-165.578175,0.00021254,2]
[335406453,1724197590212,-302.18418731,0.00022,2]
[335406454,1724197590234,-251.0,0.00022051,2]
[335406455,1724197590255,-166.66667,0.00022099,2]
[335406456,1724197590278,-302.18418731,0.0002222,2]
[335406457,1724197590302,-320.1794682,0.0002244,2]
[335406458,1724197590326,-172.557309,0.00022496,2]
[335406459,1724197590348,-166.66667,0.00022674,2]
[335406460,1724197590369,-186.0675373,0.00022677,2]
[335406461,1724197590392,-166.66667,0.0002325,2]
[335406462,1724197590413,-953.45396956,0.00023736,2]
[335406463,1724197590436,-882.96114551,0.00023767,2]
[335406464,1724197590459,-453.32148653,0.00023772,4]
[335406465,1724197590481,-216.36551947,0.00023783,2]
[335406466,1724197590503,-248.0,0.00023784,2]
[335406467,1724197590529,-782.65797788,0.00023785,2]
[335406468,1724197590690,-782.65797788,0.00023785,2]
[335406469,1724197590713,-277.6716568,0.00023798,2]
[335406470,1724197590739,-384.67336118,0.0002399,3]
[335406471,1724197623980,-154.57491897,0.00014519,2]
[335406472,1724197627098,-1260.76755592,0.0002,2]
[335406473,1724197627123,-287.15761358,0.0002,2]
[335406474,1724197627146,-434.00975875,0.0002,2]
[335406475,1724197627169,-151.0,0.00022348,2]
[335406476,1724197627190,-151.0,0.00023753,2]
[335406477,1724197627212,-160.83387276,0.00023781,2]
[335406478,1724197627238,-28481.31887042,0.0002399,3]
[335406479,1724197627261,-500.0,0.00023999,2]
[335406480,1724197627285,-420.8234762,0.00023999,2]
[335406481,1724197627308,-107315.46996008,0.00024,60]
[335406482,1724197627332,-453.32148653,0.00024009,4]
[335406483,1724197627353,-604.42864871,0.00024247,6]
[335406484,1724197627374,-604.42864871,0.00024485,6]
[335406485,1724197627399,-200.0,0.00024658,15]
[335406486,1724197627423,-604.42864871,0.00024723,6]
[335406487,1724197627445,-10342.93698711,0.00024756,2]
[335406488,1724197627468,-676.37544795,0.00024878,2]
[335406489,1724197627489,-604.42864871,0.0002496,6]
[335406490,1724197627512,-186.31049478,0.00024978,2]
[335406491,1724197627536,-227.99910334,0.00024978,2]
[335406492,1724197627560,-500.0,0.00024978,2]
[335406493,1724197627583,-500.0,0.00024978,2]
[335406494,1724197627606,-500.0,0.00024978,2]
[335406495,1724197627628,-500.0,0.00024978,2]
[335406496,1724197627652,-500.0,0.00024978,2]
[335406497,1724197627673,-643.10836603,0.00024978,2]
[335406498,1724197627694,-500.0,0.00024978,2]
[335406499,1724197627716,-164.57808513,0.00024978,2]
[335406500,1724197627739,-28865.9922316,0.0002498,3]
[335406501,1724197627769,-58617.88820123,0.0002499,9]
[335406502,1724197627791,-57731.9844633,0.0002499,3]
[335406503,1724197627815,-5657.61185921,0.00025,120]
[335406504,1724197627839,-18621.47486724,0.00025,2]
[335406505,1724197631126,-156.6552172,0.0002,2]
[335406506,1724197631152,-9134.71265912,0.00025,2]
[335406510,1724197636277,-367.9768458,0.0002,2]
[335406511,1724197639110,-10143.86933597,0.0002,2]
[335406512,1724197639133,-66.16168303,0.00023899,2]
[335406513,1724197641090,-548.2690181,0.00023899,2]
[335406514,1724197650109,-185.67141999,0.0002,2]
[335406515,1724197652091,-7215.53227579,0.0002,2]
[335406516,1724197664597,-375.54,0.0001999,3]
[335406517,1724197694975,-101070.2703,0.0001999,2]
[335406518,1724197708395,-226.11908431,0.0002,2]
[335406524,1724197724449,-154.57491897,0.00014519,2]
[335406525,1724197737411,-351.88,0.0001999,3]
[335406526,1724197747106,-182.98554832,0.00019999,2]
[335406527,1724197747129,-269.84662496,0.00019999,2]
[335406528,1724197747153,-24.19090679,0.00019999,2]
[335406529,1724197747839,-175.94,0.0001999,3]
[335406530,1724197747870,-299.86909321,0.00019999,2]
[335406534,1724197758383,175.94,0.0001999,3]
[335406535,1724197770231,-351.92,0.0001999,3]
[335406536,1724197770253,-173.63823424,0.00019999,2]
[335406537,1724197789546,151.48342059,0.0001,2]
[335406538,1724197789568,245.98,0.0001,2]
[335406539,1724197789589,161.33383007,0.0001,2]
[335406540,1724197789614,156.27445917,0.0001,2]
[335406541,1724197789638,151.66491937,0.0001,2]
[335406542,1724197789662,222.35178664,0.0001,2]
[335406543,1724197789689,1855.09245382,0.0001,2]
[335406548,1724197797403,1093.49344924,0.0001,2]
[335406600,1724197837990,-118872.09219089,0.0002,2]
[335406601,1724197838002,-156.6552172,0.0002,2]
[335406602,1724197838012,-226.11908431,0.0002,2]
[335406603,1724197838023,-703.76,0.0002136,3]
[335406604,1724197838032,-351.88,0.0002136,3]
[335406605,1724197838041,-3557.99428053,0.00022,30]
[335406606,1724197838052,-800.0,0.00022087,2]
[335406607,1724197838062,-251.0,0.00023039,2]
[335406608,1724197838071,-453.27628096,0.0002378,4]
[335406609,1724197838080,-453.27628096,0.00024017,4]